Cogmind - Beta 13 @@@ ROGUE MODE // 2024.05.07 @ 10:41:08 Player: Gabe+Kate4EVR Result: Destroyed by H-61 Shepherd with Heavy Assault Cannon Performance ------------- Evolutions (2) 1000 Regions Visited (3) 600 Robots Destroyed (11) 55 Value Destroyed (242) 242 Prototype IDs (0) 0 Alien Tech Used (0) 0 Bonus (0) 0 TOTAL SCORE: 1897 Bonus ------- None Cogmind --------- Core Integrity 0/550 Matter 57/300 Energy 100/100 System Corruption 0% Temperature Cool (0) Movement Core (200) Ox3 Location -8/Materials Parts ------- > --- POWER (1) -------- (None) > --- PROPULSION (6) --- (None) > --- UTILITY (2) ------ Medium Storage Unit > --- WEAPON (2) ------- Mini Grenade Launcher > --- INVENTORY (10) --- Light Ion Engine Improved Ion Engine Shield Generator Beam Cannon Light Assault Rifle Peak State ------------ > --- POWER ------------ Light Nuclear Core > --- PROPULSION ------- Flight Unit Flight Unit Flight Unit Flight Unit Flight Unit > --- UTILITY ---------- Medium Storage Unit > --- WEAPON ----------- Light Assault Rifle > --- INVENTORY -------- Light Ion Engine Improved Ion Engine Improved Ion Engine Shield Generator Beam Cannon Rocket Launcher Rocket Launcher Rocket Launcher Mini Grenade Launcher Mini Grenade Launcher [Rating: 11] Favorites ----------- Power Light Ion Engine Engine Light Ion Engine Power Core Light Nuclear Core Propulsion Flight Unit Flight Unit Flight Unit Utility Medium Storage Unit Storage Medium Storage Unit Weapon Light Assault Rifle Energy Gun Beam Rifle Energy Cannon Beam Cannon Ballistic Gun Light Assault Rifle Launcher Rocket Launcher Special Weapon Mining Laser Build | -11 -10 -9 -8 ------- Run | Yrd Mat Mat Mat Slots Evolved 4 | . . 2 2 Power . | . . . . Propulsion 4 | . . 2 2 Utility . | . . . . Weapon . | . . . . Parts Attached 19 | . 9 3 7 Power 4 | . 3 . 1 Engine 3 | . 3 . . Core 1 | . . . 1 Reactor . | . . . . Propulsion 5 | . 2 2 1 Treads . | . . . . Leg . | . . . . Wheel . | . . . . Hover . | . . . . Flight 5 | . 2 2 1 Utility 2 | . 1 . 1 Device . | . . . . Storage 2 | . 1 . 1 Processor . | . . . . Hackware . | . . . . Protection . | . . . . Artifact . | . . . . Weapon 8 | . 3 1 4 Energy Gun 1 | . . 1 . Energy Cannon 2 | . 2 . . Ballistic Gun 1 | . 1 . . Ballistic Cannon . | . . . . Launcher 3 | . . . 3 Special Weapon 1 | . . . 1 Impact Weapon . | . . . . Slashing Weapon . | . . . . Piercing Weapon . | . . . . Special Melee Weapon . | . . . . Unidentified Prototypes . | . . . . Parts Lost 9 | . . . 9 Power 1 | . . . 1 Propulsion 5 | . . . 5 Utility . | . . . . Weapon 3 | . . . 3 Highest Loss Streak 9 | . . . 9 To Critical Strikes . | . . . . Average Slot Usage (%) 54 | . 47 79 55 Engine 5 | . 6 11 . Core 1 | . . . 6 Flight 21 | . 12 44 29 Storage 6 | . 4 11 8 Energy Cannon 7 | . 12 . . Ballistic Gun 10 | . 11 11 6 Naked Turns 24 | . 21 . 3 Heaviest Build 17 | . 17 14 17 Greatest Support 20 | 3 8 16 20 Greatest Overweight (x) 4 | . 2 . 4 Average Overweight (x) . | . . . . Largest Inventory Capacity 10 | 5 10 10 10 Average Capacity 7 | 5 6 10 9 Most Carried 10 | . 10 10 10 Average Carried 5 | . 2 9 8 Final Capacity 10 | 5 10 10 10 Final Carried 10 | . 10 10 5 Class Distribution -------------------- 69% | Mutant 30% | Scavenger-Sprinter Dominant Class ---------------- Mutant | -10/Materials Scavenger-Sprinter | -9/Materials Scavenger-Sprinter | -8/Materials Resources | -11 -10 -9 -8 ----------- Run | Yrd Mat Mat Mat Matter Collected 192 | 84 108 . . Remotely . | . . . . Salvage Created 191 | . 108 . 83 Parts 18 | . 11 . 7 Haulers Intercepted . | . . . . Recyclers Shooed 1 | . . . 1 Parts Field Recycled . | . . . . Retrieved Matter . | . . . . Parts Self-Destructed . | . . . . Prevented . | . . . . Kills | -11 -10 -9 -8 ------- Run | Yrd Mat Mat Mat Combat Hostiles Destroyed 8 | . 5 . 3 Guns 1 | . 1 . . Cannons 4 | . 4 . . AOE 3 | . . . 3 Classes Destroyed 6 | . 2 . 4 Worker 1 | . . . 1 Recycler 1 | . . . 1 Watcher 1 | . . . 1 Swarmer 4 | . 3 . 1 Grunt 3 | . 2 . 1 Sentry 1 | . . . 1 Best Kill Streak 6 | . 3 . 6 Combat Bots Only 3 | . 3 . 3 Max Kills in Single Turn 2 | . 1 . 2 Gunslinging . | . . . . Exploded 1 | . . . 1 Melee . | . . . . Uniques/NPCs Destroyed . | . . . . Combat | -11 -10 -9 -8 -------- Run | Yrd Mat Mat Mat Hostile Shots Fired 66 | . 12 3 51 Missed 23 | . 4 3 16 Damage Taken 1005 | . 73 . 932 Core 562 | . 12 . 550 Absorbed by Shields . | . . . . Core Remaining (%) 98 | 100 95 100 . Volleys Fired 25 | . 18 . 7 Largest 2 | . 2 . 2 Hottest 100 | . 80 . 100 Shots Fired 42 | . 34 . 8 Gun 16 | . 16 . . Cannon 18 | . 18 . . Launcher 7 | . . . 7 Special 1 | . . . 1 Kinetic 16 | . 16 . . Thermal 19 | . 18 . 1 Explosive 7 | . . . 7 Electromagnetic . | . . . . Robot Hit Streak 11 | . 5 . 11 Robot Miss Streak 4 | . 4 . . Penetration Max . | . . . . Secondary Targets . | . . . . Shots Hit Robots 21 | . 15 . 6 Core Hits 17 | . 7 . 10 Critical Kills . | . . . . Critical Parts Destroyed . | . . . . Critical Strikes . | . . . . Melee Attacks . | . . . . Impact . | . . . . Slashing . | . . . . Piercing . | . . . . Sneak Attacks . | . . . . Combat Hostiles . | . . . . Follow-up Attacks . | . . . . Damage Inflicted 742 | . 211 . 531 Guns 53 | . 53 . . Cannons 158 | . 158 . . Explosions 531 | . . . 531 Melee . | . . . . Ramming . | . . . . Kinetic 53 | . 53 . . Thermal 158 | . 158 . . Explosive 531 | . . . 531 Electromagnetic . | . . . . Impact . | . . . . Slashing . | . . . . Piercing . | . . . . Highest Corruption . | . . . . Average Corruption . | . . . . Corruption Purged . | . . . . Corruption Blocked . | . . . . Overload Shots . | . . . . Overflow Damage 6 | . . . 6 Projectiles . | . . . . Explosions 6 | . . . 6 Melee . | . . . . Knockbacks . | . . . . Impact . | . . . . Kinetic . | . . . . Secondary . | . . . . Self-Inflicted Damage 58 | . . . 58 Shots 4 | . . . 4 Rammed . | . . . . Targets Rammed . | . . . . Kicked . | . . . . Crushed . | . . . . Highest Temperature 70 | . 70 1 12 Average Temperature 18 | . 25 1 2 Received Heat Transfer 108 | . 18 . 90 Siege Activations . | . . . . Robots Corrupted . | . . . . Combat Hostiles . | . . . . Parts Fried . | . . . . Impact Corruptions . | . . . . Robots Melted . | . . . . Combat Hostiles . | . . . . Parts Melted . | . . . . Heat Transferred 333 | . 333 . . Parts Sabotaged . | . . . . Parts Stolen . | . . . . Parts Stripped . | . . . . Power Chain Reactions . | . . . . Alert | -11 -10 -9 -8 ------- Run | Yrd Mat Mat Mat Peak Influence 254 | . 210 168 254 Initial 88 | . . 88 7 Average 117 | . 129 118 105 Maximum Alert Level 1 | . 1 . 1 Low Security (%) 73 | 100 63 100 79 Level 1 26 | . 36 . 20 Level 2 . | . . . . Level 3 . | . . . . Level 4 . | . . . . Level 5 . | . . . . High Security . | . . . . Max Security . | . . . . Squads Dispatched 4 | . 1 . 3 Investigation 2 | . 1 . 1 Extermination . | . . . . Reinforcement 2 | . . . 2 Assault . | . . . . Garrison . | . . . . Intercept . | . . . . Searches Triggered . | . . . . Construction Impeded . | . . . . Haulers Reinforced . | . . . . Active Scanning Responses . | . . . . Cargo Convoy Interrupts . | . . . . Stealth | -11 -10 -9 -8 --------- Run | Yrd Mat Mat Mat Distress Signals 3 | . . . 3 Communications Jammed . | . . . . Distress Signals . | . . . . Times Spotted 41 | . 14 8 19 Peak Tracking Total 17 | . 5 8 17 Tactical Retreats 3 | . 1 . 2 Traps | -11 -10 -9 -8 ------- Run | Yrd Mat Mat Mat Traps Triggered 1 | . 1 . . Indirectly . | . . . . Trap Hack Attempts . | . . . . Triggered . | . . . . Disarmed . | . . . . Reprogrammed . | . . . . Reused . | . . . . Traps Extracted . | . . . . Installed . | . . . . Triggered . | . . . . Machines | -11 -10 -9 -8 ---------- Run | Yrd Mat Mat Mat Machines Disabled 1 | . . . 1 Max in Single Turn 1 | . . . 1 Machines Repaired . | . . . . Machines Dismantled . | . . . . Machines Sabotaged . | . . . . Overloaded Fab Kills . | . . . . Hacking | -11 -10 -9 -8 --------- Run | Yrd Mat Mat Mat Machines Accessed 7 | . 2 2 3 Terminals 6 | . 1 2 3 Fabricators . | . . . . Repair Stations 1 | . 1 . . Recycling Units . | . . . . Scanalyzers . | . . . . Garrison Access . | . . . . Total Hacks 18 | . 5 5 8 Successful 3 | . 1 2 . Failed 15 | . 4 3 8 Catastrophic 8 | . 2 1 5 Database Lockouts . | . . . . Manual 14 | . 2 4 8 Terminals 15 | . 2 5 8 Fabricators . | . . . . Repair Stations 3 | . 3 . . Recycling Units . | . . . . Scanalyzers . | . . . . Garrison Access . | . . . . Terminal Hacks 2 | . . 2 . Robot Analysis 1 | . . 1 . Unreport Threat 1 | . . 1 . Fabricator Hacks . | . . . . Repair Station Hacks 1 | . 1 . . Scan Component 1 | . 1 . . Recycling Unit Hacks . | . . . . Scanalyzer . | . . . . Garrison Access Hacks . | . . . . Unauthorized Hacks . | . . . . Terminals . | . . . . Fabricators . | . . . . Repair Stations . | . . . . Recycling Units . | . . . . Scanalyzers . | . . . . Garrison Access . | . . . . Data Cores Recovered . | . . . . Used . | . . . . Hacking Detections 7 | . 2 2 3 Full Trace Events 2 | . 1 . 1 Feedback Events . | . . . . Feedback Blocked . | . . . . Robot Schematics Acquired . | . . . . Robots Built . | . . . . Authchips . | . . . . Time . | . . . . Total Robot Build Rating . | . . . . Part Schematics Acquired . | . . . . Parts Built . | . . . . Authchips . | . . . . Time . | . . . . Total Part Build Rating . | . . . . Parts Repaired . | . . . . Time . | . . . . Parts Recycled . | . . . . Recycled Matter . | . . . . Retrieved Matter . | . . . . Retrieved Components . | . . . . Parts Scanalyzed . | . . . . Part Schematics Acquired . | . . . . Parts Damaged . | . . . . Bothacking | -11 -10 -9 -8 ------------ Run | Yrd Mat Mat Mat Used RIF Installer . | . . . . Robots Hacked . | . . . . Non-combat . | . . . . Combat . | . . . . Robot Hacks Applied . | . . . . Relay Couplers Released . | . . . . Fabnet Peak Effective % . | . . . . Robots Rewired . | . . . . Allies Hacked . | . . . . Hacks Repelled . | . . . . Allies | -11 -10 -9 -8 -------- Run | Yrd Mat Mat Mat Total Allies . | . . . . Largest Group . | . . . . Highest-Rated Group . | . . . . Highest-Rated Ally . | . . . . Total Orders . | . . . . Ally Attacks . | . . . . Total Damage . | . . . . Kills . | . . . . Allies Corrupted . | . . . . Allies Melted . | . . . . Intel | -11 -10 -9 -8 ------- Run | Yrd Mat Mat Mat Robot Analysis Total 1 | . . 1 . Derelict Logs Recovered . | . . . . Drone Launches . | . . . . Drone Recoveries . | . . . . Exploration | -11 -10 -9 -8 ------------- Run | Yrd Mat Mat Mat Turns Passed 389 | 12 229 49 99 Spaces Moved 527 | 23 209 112 183 Core 119 | 23 93 . 3 Treads . | . . . . Legs . | . . . . Wheels . | . . . . Hover . | . . . . Flight 408 | . 116 112 180 Fastest Speed 28 | 50 37 31 28 Average Speed 47 | 50 70 31 31 Slowest Speed 250 | 50 197 31 250 Overloaded Moves . | . . . . Propulsion Burnouts . | . . . . Robots Hopped 7 | . 1 2 4 Cave-ins Triggered . | . . . . Exploration Rate (%) 20 | 3 28 19 33 Regions Visited 3 Branch Regions . Pre-discovered Areas . | . . . . Known Exits Taken . | . . . . Unknown Exits Taken 3 | 1 1 1 . Scrap Searched . | . . . . Spaces Dug 1 | . . . 1 Terrain Destroyed 25 | . . . 25 Melee . | . . . . Projectile 1 | . . . 1 AOE 24 | . . . 24 Terrain Rammed . | . . . . Walls Destroyed . | . . . . Machines Disabled . | . . . . Actions | -11 -10 -9 -8 --------- Run | Yrd Mat Mat Mat Total 618 | 22 257 129 210 Wait 32 | . 10 8 14 Move 510 | 22 206 107 175 Hop 7 | . 1 2 4 Pick Up 15 | . 10 4 1 Fast Attach 10 | . 6 1 3 Attach 6 | . 2 2 2 Detach 3 | . 2 1 . Swap 3 | . 1 . 2 Drop 7 | . 1 4 2 Fire 25 | . 18 . 7 Melee . | . . . . Ram . | . . . . Kick . | . . . . Crush . | . . . . Escape Stasis . | . . . . Rewire . | . . . . Trap . | . . . . Miscellaneous . | . . . . Route ------- -11/Scrapyard -10/Materials -9/Materials (discovered 2 exits: *Mat / [*Min]) -8/Materials History --------- Turn | Location | Event 4 | -11/Scrapyard | Discovered new exit (range 14) 13 | -11/Scrapyard | Entered Materials 43 | -10/Materials | Discovered new exit (range 13) 242 | -10/Materials | Entered another Materials area 242 | -9/Materials | Evolved 2 slots: Propulsion x2 279 | -9/Materials | Discovered new exit (range 13) 286 | -9/Materials | Discovered new exit (range 16) 291 | -9/Materials | Entered another Materials area 291 | -8/Materials | Evolved 2 slots: Propulsion x2 380 | -8/Materials | Core integrity fell below 50% 386 | -8/Materials | Core integrity fell below 20% 390 | -8/Materials | Destroyed by H-61 Shepherd with Heavy Assault Cannon Last Messages --------------- 00372_ ALERT: Hostile activity reported, dispatching reinforcements to area. 00372_ Mining Laser destroyed. 00372_ Lgt. Nuclear Core destroyed. 00374_ R-06 Scavenger destroyed. 00374_ Rocket Launcher destroyed. 00374_ Flight Unit destroyed. 00377_ K-01 Serf cleans the Integration Channel. 00377_ Acquired Rocket Launcher. 00379_ Knocked back. 00379_ Acquired Med. Storage Unit. 00381_ K-01 Serf collects debris. 00383_ Acquired Mni. Grenade Launcher. 00385_ G-47 Trooper destroyed. 00385_ Integration Channel disabled. 00385_ Rocket Launcher destroyed. 00387_ K-01 Serf collects debris. 00388_ K-01 Serf destroyed. 00390_ Y-45 Defender destroyed. 00390_ Penetrated by Slug. Map ----- +----------------------------------------------------+ | | | | | | | | | | | | | ???????????????????????????????????????????? | | ???????????????????????????????????????????? | | ???????????????????????????????????????????? | | ???????????????????????????????????????????? | | ???????????????????????????????????????????? | | ???????????????????????????????????????????? | | ???????????????????????????????????????????? | | ???????????????????????????????????????????? | | ???????????????????????????????????????????? | | ???????????????????????????????????????????? | | ??????????????????###??????????????????????? | | ??????????????????# ?????????????????????? | | ??????????????????# "?????????????????????? | | ??????????????????# """????????????????????? | | ??????????????????# """ #??????????????????? | | ??????????????????# """ #??????????????????? | | ??????????????????# "" #??????????????????? | | ??????????????????# """ #??????????????????? | | ?????????????????##%"" #??????????????????? | | ?????????????????# @*" #??????????????????? | | ?????????????????# = #???#?????????????? | | ?????????????????# ! #?????????????? | | ??????#??????????# ##????????????? | | ??????#!! ###"+## ###??????????? | | ??????#|| ????????? | | ??????#|| H ????????? | | ??????#!! k ????????? | | ??????#!! ####+#### ####?????????? | | ??????#???????????# ## ##????????????? | | ??????????????????# #?# ????????????? | | ??????????????????# #??"" ???????????? | | ?????????????????## ##?"" """ ???????????? | | ?????????????????# #?"? ""?????????????? | | ?????????????????# #???? "??????????????? | | ?????????????????#] #????? ???????????????? | | ?????????????????## ##?????????????????????? | | ??????????????????# #??????????????????????? | | ??????????????????# #??????????????????????? | | ??????????????????# #??????????????????????? | | ??????????????????# #??????????????????????? | | ??????????????????# #??????????????????????? | | ??????????????????# #??????????????????????? | | ??????????????????# #??????????????????????? | | ??????????????????# #??????????????????????? | +----------------------------------------------------+ Best States ------------- Heat Dissipation 31 Energy Generation 14 Energy Capacity 265 Matter Stores 216 Matter Capacity 300 Sight Range 16 Terrain Scan Density 10 Evasion (%) 64 Item Schematics ----------------- None Robot Schematics ------------------ None Fabricated ------------ Nothing Alien Tech Used ----------------- None Achievements -------------- None Challenges ------------ None Game ------ Seed NavigationGodCannon Manual? 0 Play Time 00:09:50 Cumulative 154.7 hours Start 2024.05.07 @ 10:33:06 End 2024.05.07 @ 10:41:08 Sessions 1 Manual Loads 0 Difficulty Rogue Special Mode None Game No. 310 Rogue 310 Adventurer 0 Explorer 0 Win Type - Total 0 Types 0/0/0/0/0/0/0/0/0 Lore% 38 Gallery% 58 Achievement% 42 Wizard Run 0 Options --------- Layout 0 ASCII 0 Keyboard 1 Movement Numpad Keybinds 0 Fullscreen 2 Font 18/X11 Map View 76x50 Zoom Use 0% Tactical HUD 1 Map Filters NONE Filters NONE Steam 1 RUN: 3bd7626e-0eb3-4c53-afa6-1827cf9b15dd